bitfinex-derivatives/quotes_SOLF0:USTF0_20251228
["timestamp","ask_amount","ask_price","bid_price","bid_amount"]
[1766895633700,1.39165723,124.24,124.2,0.00271464]
[1766895673636,0.05165723,124.24,124.2,0.00271464]
[1766895703055,8.64085723,124.24,124.2,0.00271464]
[1766895703254,8.64085723,124.24,124.19,2.08134948]
[1766895704250,8.64085723,124.24,124.2,0.05259511]
[1766895728077,0.05165723,124.24,124.2,3.25259511]
[1766895731988,0.05165723,124.24,124.2,4.74668405]
[1766895736690,0.05165723,124.24,124.2,3.25259511]
[1766895753999,1.54574617,124.24,124.2,3.25259511]
[1766895757114,0.05165723,124.24,124.2,3.25259511]
[1766895759510,8.12165723,124.24,124.2,3.25259511]
[1766895776321,9.61574617,124.24,124.2,3.25259511]
[1766895782929,8.12165723,124.24,124.2,3.25259511]
[1766895805650,0.05165723,124.24,124.2,3.25259511]
[1766895808756,13.93,124.23,124.2,3.25259511]
[1766895825266,13.93,124.23,124.2,0.05259511]
[1766895847494,16.4,124.23,124.2,0.05259511]
[1766895851090,0.05165723,124.24,124.2,3.33259511]
[1766895851293,7.2466,124.29,124.21,5.61512828]
[1766895852194,0.05705901,124.26,124.24,0.055513]
[1766895856495,0.05705901,124.26,124.24,1.54888012]
[1766895862193,0.05705901,124.26,124.24,0.055513]
[1766895884123,0.05705901,124.26,124.22,3.32]
[1766895884927,0.05705901,124.26,124.23,0.06179125]
[1766895902629,1.43705901,124.26,124.23,0.06179125]
[1766895902830,1.43705901,124.26,124.2,5.00336712]
[1766895903035,1.38,124.25,124.2,3.51]
[1766895903835,1.38,124.25,124.21,0.05272138]
[1766895904835,2.87336712,124.25,124.21,0.05272138]
[1766895905033,1.38,124.25,124.21,0.05272138]
[1766895910036,1.38,124.24,124.21,0.05272138]
[1766895910941,1.38,124.24,124.21,0.00272138]
[1766895914945,1.33,124.23,124.18,3.51]
[1766895915248,1.33,124.23,124.18,5.00336712]
[1766895915840,0.05349099,124.22,124.19,0.05384803]
[1766895917244,11.15349099,124.22,124.19,0.05384803]
[1766895927152,11.15349099,124.22,124.15,10.03844693]
[1766895927153,1.33,124.21,124.15,10.03844693]
[1766895927346,1.33,124.21,124.13,3.26]
[1766895927546,1.33,124.21,124.15,3.26]
[1766895927858,1.33,124.21,124.16,5.59526843]
[1766895928259,0.05362501,124.2,124.17,0.05351017]
[1766895929249,1.33362501,124.2,124.17,0.05351017]
[1766895932560,1.33362501,124.2,124.17,0.00351017]
[1766895936050,1.33362501,124.2,124.14,3.26]
[1766895937049,1.33362501,124.2,124.16,0.03104483]
[1766895962210,1.2,124.19,124.11,3.36]
[1766895962500,1.2,124.19,124.13,3.36]
[1766895962704,1.2,124.19,124.14,2.33526843]
[1766895963405,0.05142523,124.18,124.14,5.69526843]
[1766895973510,13.51,124.17,124.14,5.69526843]
[1766895974708,3.34,124.24,124.17,3.36]
[1766895975002,3.44,124.23,124.16,100.79526843]
[1766895975706,3.44,124.23,124.18,0.05142523]
[1766895975707,0.05859829,124.21,124.18,0.05142523]
[1766895977906,0.05859829,124.21,124.19,1.49459318]
[1766895981714,0.05859829,124.21,124.2,1.49459318]
[1766895982215,3.44,124.22,124.2,1.49459318]
[1766895983215,3.49210681,124.22,124.2,1.49459318]
[1766895983814,3.49210681,124.22,124.19,1.49459318]
[1766895984615,3.49210681,124.22,124.18,1.54601841]
[1766895985617,0.05210681,124.22,124.18,4.84601841]
[1766895985820,0.05210681,124.22,124.2,1.49459318]
[1766895986613,12.3,124.24,124.21,1.49459318]
[1766895987018,3.44,124.26,124.22,4.79459318]
[1766895987719,0.05423386,124.25,124.23,0.06029786]
[1766895995525,3.44,124.27,124.23,1.55489104]
[1766895996522,0.05510404,124.26,124.23,1.55489104]
[1766895997225,0.05510404,124.26,124.23,4.85489104]
[1766895997433,3.44,124.29,124.23,4.85489104]
[1766895998333,0.05338173,124.27,124.23,4.85489104]
[1766895998828,0.05338173,124.27,124.24,4.79459318]
[1766895999029,0.00338173,124.27,124.25,4.79459318]
[1766896004933,0.00338173,124.27,124.26,1.49459318]
[1766896005330,0.00338173,124.27,124.25,4.79459318]
[1766896008236,0.00338173,124.27,124.26,3.3]
[1766896011132,10.5652,124.31,124.26,4.79459318]
[1766896012042,0.0546785,124.3,124.27,0.05602187]
[1766896025844,0.0546785,124.3,124.27,1.55061505]
[1766896028647,0.0546785,124.3,124.27,0.05602187]
[1766896046665,0.0046785,124.3,124.27,3.47602187]
[1766896051169,3.41,124.34,124.29,3.42]
[1766896052271,0.05287452,124.33,124.3,0.05291256]
[1766896069283,0.05287452,124.33,124.3,3.78291256]
[1766896088504,0.05287452,124.33,124.3,0.05291256]
[1766896141456,3.68287452,124.33,124.3,0.05291256]
[1766896141754,3.63,124.32,124.27,3.56]
[1766896142655,10.8746,124.32,124.28,0.05382527]
[1766896147460,3.63,124.32,124.28,0.05382527]
[1766896153765,3.63,124.31,124.28,0.05382527]
[1766896174580,3.63,124.31,124.28,0.00382527]
[1766896178881,98.98287452,124.33,124.28,0.00382527]
[1766896179876,3.87,124.32,124.28,0.00382527]
[1766896208810,3.87,124.32,124.28,3.78382527]
[1766896211111,3.87,124.32,124.28,0.00382527]
[1766896236737,0.05287452,124.33,124.28,5.23610577]
[1766896237237,3.68287452,124.33,124.28,5.23610577]
[1766896240435,3.68287452,124.33,124.28,3.74382527]
[1766896241138,3.68287452,124.33,124.28,0.00382527]
[1766896241332,3.63,124.32,124.28,0.00382527]
[1766896280381,3.63,124.32,124.28,3.88382527]
[1766896281573,0.05287452,124.33,124.28,3.88382527]
[1766896281877,0.05287452,124.33,124.29,1.4922805]
[1766896282283,3.91,124.31,124.24,10.02350831]
[1766896282578,3.91,124.25,124.2,1.4922805]
[1766896282784,3.91,124.25,124.19,1.4922805]
[1766896283280,3.91,124.25,124.22,1.4922805]
[1766896284276,3.96990513,124.25,124.22,1.4922805]
[1766896284674,3.91,124.27,124.24,1.4922805]
[1766896285679,3.97191634,124.27,124.24,1.54432185]
[1766896286982,3.97191634,124.27,124.24,0.05204135]
[1766896300793,3.91,124.3,124.24,3.93204135]
[1766896301792,0.05712719,124.28,124.24,3.93204135]
[1766896314717,10.8645,124.32,124.24,3.93204135]
[1766896315017,3.62,124.31,124.26,3.76]
[1766896315716,3.67577937,124.3,124.27,0.05523171]
[1766896321515,3.67577937,124.3,124.24,3.76]
[1766896322517,3.67577937,124.3,124.26,0.06006962]
[1766896340133,3.67577937,124.3,124.26,6.962e-05]
[1766896345638,3.68,124.29,124.26,6.962e-05]
[1766896362232,9.69080433,124.29,124.26,6.962e-05]
[1766896362438,3.68,124.28,124.26,6.962e-05]
[1766896401584,5.17301914,124.28,124.26,6.962e-05]
[1766896401885,3.68,124.28,124.26,6.962e-05]
[1766896402789,5.17301914,124.28,124.26,6.962e-05]
[1766896403086,3.76,124.27,124.26,6.962e-05]
[1766896403286,3.76,124.26,124.2,3.76]
[1766896403485,3.76,124.25,124.2,3.76]
[1766896404189,0.05279358,124.24,124.21,0.05123483]
[1766896410985,3.81279358,124.24,124.21,0.05123483]
[1766896417503,0.05279358,124.24,124.21,0.05123483]
[1766896426123,0.05279358,124.24,124.21,3.63123483]
[1766896426414,10.7378,124.27,124.21,3.63123483]
[1766896427012,10.7378,124.27,124.21,5.96647165]
[1766896427415,0.05785855,124.25,124.21,5.96647165]
[1766896428509,0.05785855,124.25,124.21,3.63123483]
[1766896428714,0.05785855,124.25,124.21,5.96647165]
[1766896444830,0.05785855,124.25,124.21,3.63123483]
[1766896485169,0.05785855,124.25,124.22,3.69]
[1766896502087,0.05785855,124.25,124.21,0.05123483]
[1766896502286,0.05785855,124.25,124.21,3.52123483]
[1766896507493,1.49417942,124.24,124.21,3.483e-05]
[1766896507694,14.8396788,124.25,124.21,3.483e-05]
[1766896507894,6.03894083,124.24,124.21,3.483e-05]
[1766896508590,6.03894083,124.24,124.21,0.05305315]
[1766896511493,3.77,124.23,124.21,0.00301832]
[1766896525511,3.57785855,124.25,124.21,0.00301832]
[1766896525710,5.01417942,124.24,124.21,0.00301832]
[1766896526712,12.26337942,124.24,124.21,0.00301832]
[1766896527816,107.40337942,124.24,124.21,0.00301832]
[1766896529314,3.52,124.23,124.21,0.00301832]
[1766896530414,10.7698,124.23,124.21,0.00301832]
[1766896532418,3.52,124.22,124.21,0.00301832]
[1766896533313,7.2498,124.23,124.21,0.00301832]
[1766896535923,10.7698,124.23,124.21,0.00301832]
[1766896539019,3.52,124.22,124.21,0.00301832]
[1766896541223,3.52,124.21,124.16,3.71]
[1766896542024,0.05786502,124.2,124.17,0.05619444]
[1766896542217,3.57786502,124.2,124.16,3.71]
[1766896542818,3.52,124.19,124.13,2.33571701]
[1766896543028,3.52,124.19,124.13,3.71]
[1766896543219,0.05233003,124.17,124.15,0.05542594]
[1766896546025,3.68,124.12,124.05,3.59]
[1766896546225,116.5644,124.11,124.05,3.59]
[1766896546425,3.68,124.1,124.05,3.59]
[1766896546623,10.9375,124.1,124.05,3.59]
[1766896547128,10.9375,124.1,124.06,0.05815434]
[1766896547325,106.0962,124.12,124.06,3.64815434]
[1766896548029,0.05980642,124.1,124.06,3.64815434]
[1766896548433,0.05980642,124.1,124.07,5.92571701]
[1766896549026,0.05980642,124.1,124.07,3.59]
[1766896549427,105.9851,124.14,124.07,3.59]
[1766896550425,0.0583721,124.12,124.09,0.06194458]
[1766896555951,5.94408911,124.12,124.09,0.06194458]
[1766896557240,3.55,124.11,124.09,0.06194458]
[1766896557446,10.807,124.11,124.09,0.06194458]
[1766896557638,3.55,124.1,124.05,3.68]
[1766896558833,0.05723849,124.09,124.06,0.06139321]
[1766896561234,3.60723849,124.09,123.99,1.40266022]
[1766896561440,3.60723849,124.09,124.01,3.68]
[1766896561441,3.55,124.07,124.01,3.68]
[1766896562241,3.55,124.09,124.02,3.68]
[1766896562442,3.55,124.09,124.04,3.68]
[1766896563435,0.06114634,124.08,124.04,3.68]
[1766896566246,3.61114634,124.08,124.03,0.05692215]
[1766896569649,3.61114634,124.08,124.03,3.73692215]
[1766896569835,0.06114634,124.08,124.03,3.73692215]
[1766896571047,0.06114634,124.08,124.03,6.07263916]
[1766896571240,0.06114634,124.08,124.04,3.68]
[1766896578454,0.00114634,124.08,124.04,3.68]
[1766896584465,10.8659,124.13,124.04,3.68]
[1766896584655,10.8659,124.13,124.06,3.43]
[1766896585558,0.05586254,124.11,124.08,0.05206073]
[1766896615194,6.08786761,124.11,124.08,0.05206073]
[1766896615397,0.05586254,124.11,124.08,0.05206073]
[1766896615786,6.08786761,124.11,124.08,0.05206073]
[1766896616200,0.05586254,124.11,124.08,0.05206073]
[1766896628311,6.09077902,124.11,124.08,0.05206073]
[1766896634711,3.29,124.14,124.09,5.05762343]
[1766896634909,3.29,124.14,124.1,1.49762343]
[1766896635810,0.05443906,124.13,124.11,0.06018701]
[1766896636016,3.55,124.16,124.12,1.49762343]
[1766896637012,0.06042945,124.15,124.12,1.49762343]
[1766896637215,0.06042945,124.15,124.11,1.55781044]
[1766896637415,0.06042945,124.15,124.11,0.06018701]
[1766896647222,0.06042945,124.15,124.11,1.55781044]
[1766896649020,0.06042945,124.15,124.11,0.06018701]
[1766896649216,0.06042945,124.15,124.11,1.55781044]
[1766896652728,0.06042945,124.15,124.11,0.06018701]
[1766896652929,0.06042945,124.15,124.11,1.55781044]
[1766896654022,0.06042945,124.15,124.11,0.06018701]
[1766896657127,3.34042945,124.15,124.11,0.06018701]
[1766896658632,10.59492945,124.15,124.11,0.06018701]
[1766896659033,3.28,124.14,124.11,0.06018701]
[1766896675345,0.06042945,124.15,124.11,0.06018701]
[1766896680647,0.06042945,124.15,124.11,3.34018701]
[1766896680842,0.06042945,124.15,124.12,5.618088]
[1766896695574,2.3960417,124.18,124.13,3.46]
[1766896695760,3.54,124.19,124.13,3.46]
[1766896696667,0.05903626,124.17,124.15,0.05331567]
[1766896743808,3.51,124.19,124.15,1.54925153]
[1766896744004,6.0136906,124.2,124.15,4.76925153]
[1766896744603,9.5236906,124.2,124.15,4.76925153]
[1766896744901,0.05162848,124.19,124.15,4.76925153]
[1766896750514,0.05162848,124.19,124.16,1.49593586]
[1766896757330,0.05162848,124.19,124.16,4.89593586]
[1766896757929,0.05162848,124.19,124.17,1.49593586]
[1766896758330,0.00162848,124.19,124.17,4.89593586]
[1766896759421,9.53724864,124.22,124.17,4.89593586]
[1766896760231,16.78764864,124.22,124.17,4.89593586]
[1766896760430,10.7804,124.22,124.17,4.89593586]
[1766896760628,0.05660526,124.21,124.18,0.05790468]
[1766896770838,10.7821,124.19,124.12,3.4]
[1766896771031,5.02593586,124.19,124.13,3.4]
[1766896772039,0.05365219,124.17,124.15,0.05176358]
[1766896788852,7.2519,124.2,124.15,3.37176358]
[1766896789150,10.6719,124.2,124.15,3.37176358]
[1766896790049,0.05865976,124.19,124.15,3.37176358]
[1766896837388,6.06818288,124.19,124.15,3.37176358]
[1766896855202,0.05865976,124.19,124.15,3.37176358]
[1766896863714,7.55998775,124.19,124.15,3.37176358]
[1766896865312,6.06429396,124.19,124.15,3.37176358]
[1766896866313,0.05865976,124.19,124.15,3.37176358]
[1766896921370,6.07021853,124.19,124.15,3.37176358]
[1766896934687,9.58021853,124.19,124.13,3.39]
[1766896934886,9.58021853,124.19,124.13,5.34297069]
[1766896934887,3.37,124.18,124.13,5.34297069]
[1766896935877,0.05609484,124.17,124.14,0.05485214]
[1766896952206,10.67939484,124.17,124.14,0.05485214]
[1766896953409,7.2538,124.16,124.11,3.29]
[1766896953607,10.6238,124.16,124.11,3.29]
[1766896954612,0.06124438,124.15,124.12,0.05882807]
[1766897048297,0.06124438,124.15,124.12,3.44882807]
[1766897048502,6.0327929,124.17,124.12,3.44882807]
[1766897049508,0.00092836,124.16,124.12,3.44882807]
[1766897050610,0.00092836,124.16,124.14,3.39]
[1766897055207,3.2,124.19,124.14,3.39]
[1766897056105,0.06106557,124.18,124.15,0.0575469]
[1766897123168,0.00106557,124.18,124.15,3.4275469]
[1766897123470,3.44,124.22,124.17,1.08]
[1766897124463,3.49765371,124.21,124.18,0.06091985]
[1766897159683,3.49765371,124.21,124.14,97.51583495]
[1766897159890,3.22,124.2,124.13,8.3951]
[1766897160487,3.22,124.2,124.14,2.33583495]
[1766897160688,0.05366159,124.18,124.16,0.058159]
[1766897268677,0.05366159,124.18,124.14,1.14]
[1766897269270,3.32,124.17,124.12,1.13]
[1766897269482,3.32,124.17,124.1,1.13]
[1766897269684,0.05178073,124.15,124.12,0.05479919]
[1766897269879,3.37178073,124.15,124.1,1.13]
[1766897270883,3.37178073,124.15,124.11,0.05485858]
[1766897271580,10.62628073,124.15,124.11,0.05485858]
[1766897272779,3.32,124.14,124.1,0.09978081]
[1766897272976,3.32,124.14,124.07,2.33647617]
[1766897273976,0.0541612,124.12,124.09,0.05938162]
[1766897275474,3.5541612,124.12,124.09,0.05938162]
[1766897275679,3.5541612,124.12,124.07,0.11]
[1766897277080,3.5541612,124.12,124.08,0.06056809]
[1766897279572,13.14713737,124.12,124.08,0.00056809]
[1766897279773,3.5,124.11,124.08,0.00056809]
[1766897282584,0.0541612,124.12,124.08,0.17056809]
[1766897286293,3.5541612,124.12,124.08,0.17056809]
[1766897298507,3.5541612,124.12,124.08,0.00056809]
[1766897312121,3.27,124.14,124.08,0.17056809]
[1766897312320,3.27,124.14,124.09,2.50647617]
[1766897312912,3.27,124.14,124.09,9.76417617]
[1766897313109,0.05806221,124.13,124.1,0.05979224]
[1766897313422,3.27,124.14,124.1,0.05979224]
[1766897314320,0.05761963,124.13,124.1,0.05979224]
[1766897316522,3.27,124.14,124.1,0.05979224]
[1766897317426,0.05350276,124.13,124.1,0.05979224]
[1766897317628,0.05350276,124.13,124.1,2.39626841]
[1766897319129,0.05350276,124.13,124.1,0.05979224]
[1766897319629,3.32350276,124.13,124.1,0.05979224]
[1766897319821,3.32350276,124.13,124.08,2.33647617]
[1766897320734,3.32350276,124.13,124.09,0.0513181]
[1766897323935,3.32350276,124.13,124.09,1.5480963]
[1766897332041,3.32350276,124.13,124.09,0.0513181]
[1766897332235,3.32350276,124.13,124.09,1.5480963]
[1766897332542,3.32350276,124.13,124.09,0.0513181]
[1766897332733,3.32350276,124.13,124.09,1.5480963]
[1766897332929,3.32350276,124.13,124.08,1.4967782]
[1766897333643,3.32350276,124.13,124.07,103.9754782]
[1766897334044,3.32350276,124.13,124.09,0.05888793]
[1766897334342,3.32350276,124.13,124.07,103.9754782]
[1766897334643,4.82028096,124.13,124.07,102.4787]
[1766897334842,3.25,124.12,124.07,102.4787]
[1766897335142,3.25,124.11,124.05,105.7465782]
[1766897335337,0.05819593,124.09,124.07,0.05602347]
[1766897343150,0.05819593,124.09,124.07,1.55280167]
[1766897347057,0.05819593,124.09,124.07,0.05602347]
[1766897359655,0.05819593,124.09,124.07,1.55280167]
[1766897362867,3.25,124.1,124.07,1.55280167]
[1766897363771,3.31073826,124.1,124.07,1.55280167]
[1766897368973,3.31073826,124.1,124.08,1.4967782]
[1766897374671,0.00073826,124.1,124.09,1.4967782]
[1766897374874,9.50941537,124.13,124.09,1.4967782]
[1766897375073,3.51,124.13,124.09,1.4967782]
[1766897375872,0.05768406,124.12,124.1,0.05304962]
[1766897380084,0.05768406,124.12,124.1,1.54982782]
[1766897384086,0.05768406,124.12,124.1,0.05304962]
[1766897384687,0.05768406,124.12,124.1,1.54982782]
[1766897386000,0.05768406,124.12,124.1,0.05304962]
[1766897402800,3.55768406,124.12,124.06,96.99]
[1766897403001,3.55768406,124.12,124.07,1.82]
[1766897403803,3.55768406,124.12,124.08,0.05557915]
[1766897447954,3.55768406,124.12,124.08,1.55288346]
[1766897451259,3.55768406,124.12,124.08,0.05557915]
[1766897457456,3.55768406,124.12,124.08,1.55288346]
[1766897474665,9.5789625,124.12,124.08,1.55288346]
[1766897484985,9.5789625,124.12,124.08,0.05557915]
[1766897487484,3.55768406,124.12,124.08,0.05557915]
[1766897492287,3.55768406,124.12,124.07,0.00288346]
[1766897493189,3.55768406,124.12,124.08,0.05649903]
[1766897523109,3.55768406,124.12,124.08,5.74612629]
[1766897523306,0.17210157,124.12,124.08,5.74612629]
[1766897524322,0.05828878,124.11,124.08,5.74612629]
[1766897524521,0.17210157,124.12,124.08,5.74612629]
[1766897525623,0.06047944,124.11,124.08,5.74612629]
[1766897539934,0.06047944,124.11,124.09,95.22]
[1766897544343,3.21,124.14,124.09,98.44]
[1766897545344,0.05826115,124.13,124.09,98.44]
[1766897560359,0.05826115,124.13,124.09,3.22]
[1766897560564,0.05826115,124.13,124.1,95.2]
[1766897572172,0.05826115,124.13,124.1,96.69699089]
[1766897578789,0.05826115,124.13,124.1,100.22699089]
[1766897580585,0.05826115,124.13,124.1,98.73]
[1766897580785,0.05826115,124.13,124.1,100.22699089]
[1766897587196,0.05826115,124.13,124.11,1.49699089]
[1766897587486,0.05826115,124.13,124.11,1.55771031]
[1766897591990,0.05826115,124.13,124.11,0.06071942]
[1766897619014,0.05826115,124.13,124.03,112.9525]
[1766897619015,3.30826115,124.13,124.08,100.12699089]
[1766897619208,3.25,124.13,124.08,100.12699089]
[1766897619406,10.5056,124.13,124.08,100.12699089]
[1766897619914,0.0547604,124.12,124.09,0.0617353]
[1766897622613,0.0547604,124.12,124.09,1.55872619]
[1766897628123,0.0547604,124.12,124.09,0.0617353]
[1766897632325,0.0547604,124.12,124.09,3.4517353]
[1766897650237,7.2548,124.15,124.11,3.39]
[1766897651446,0.05612855,124.14,124.12,0.05984374]
[1766897729825,3.42612855,124.14,124.09,4.81682576]
[1766897730920,3.42612855,124.14,124.1,0.05386931]
[1766897732530,3.42612855,124.14,124.1,3.37386931]
[1766897745030,3.42612855,124.14,124.1,4.87069507]
[1766897749937,3.42612855,124.14,124.1,3.37386931]
[1766897773356,0.05612855,124.14,124.1,3.37386931]
[1766897792776,0.05612855,124.14,124.1,5.71269464]
[1766897792977,0.05612855,124.14,124.11,3.33]
[1766897794679,1.99574102,124.16,124.11,3.33]
[1766897794879,7.98413535,124.16,124.11,3.33]
[1766897795580,0.05217883,124.15,124.11,3.33]
[1766897808891,6.04057316,124.15,124.11,3.33]
[1766897812086,17.98220612,124.15,124.1,3.24386931]
[1766897812286,11.99381179,124.15,124.1,3.24386931]
[1766897817193,10.49687883,124.15,124.1,4.74080227]
[1766897821403,3.19,124.14,124.1,1.55080227]
[1766897821599,9.16832064,124.14,124.1,0.05386931]
[1766897821803,16.42342064,124.14,124.1,0.05386931]
[1766897822003,10.4451,124.14,124.1,0.05386931]
[1766897828900,10.4451,124.14,124.1,1.55080227]
[1766897832204,10.4451,124.14,124.1,0.05386931]
[1766897855329,3.4,124.13,124.1,0.05386931]
[1766897879138,3.4,124.13,124.1,0.00386931]
[1766897945691,3.19,124.11,124.05,1.49709723]
[1766897946588,0.05777129,124.09,124.07,0.05702827]
[1766897956302,0.05777129,124.09,124.07,1.5541255]
[1766897960006,0.05777129,124.09,124.07,0.05702827]
[1766897962308,0.05777129,124.09,124.07,1.5541255]
[1766897964101,0.05777129,124.09,124.07,0.05702827]
[1766897964305,0.05777129,124.09,124.07,1.5541255]
[1766897996033,0.05777129,124.09,124.07,0.05702827]
[1766897999843,10.7862,124.12,124.07,0.05702827]
[1766898000741,0.0509515,124.11,124.07,0.05702827]
[1766898004948,3.5309515,124.11,124.03,3.35]
[1766898005148,3.48,124.08,123.95,113.0196]
[1766898005356,3.48,124.07,124.0,3.35]
[1766898005549,3.48,124.06,124.0,3.35]
[1766898005746,3.48,124.06,124.01,2.33990548]
[1766898006043,0.05163944,124.05,124.02,0.06030864]
[1766898008247,0.05163944,124.05,124.0,5.68990548]
[1766898009251,0.05163944,124.05,124.01,0.05853662]
[1766898020663,3.46163944,124.05,124.01,0.05853662]
[1766898033072,10.72193944,124.05,124.01,0.05853662]
[1766898033779,3.41,124.04,124.01,0.05853662]
[1766898039482,3.41,124.04,123.99,2.33990548]
[1766898040181,3.41,124.04,123.98,3.22]
[1766898040384,0.05855931,124.02,124.0,0.05982706]
[1766898042774,3.46855931,124.02,123.97,3.15571242]
[1766898043279,3.41,124.0,123.97,3.15571242]
[1766898043685,3.41,124.0,123.97,3.21757297]
[1766898048892,10.5827,124.01,123.97,3.21757297]
[1766898049595,3.32,124.01,123.97,3.21757297]
[1766898051192,0.05855931,124.02,123.97,6.72757297]
[1766898053589,0.05855931,124.02,123.98,2.33990548]
[1766898054192,0.05855931,124.02,123.98,5.84990548]
[1766898055389,0.05855931,124.02,123.98,3.51]
[1766898055697,3.49,124.01,123.97,3.21757297]
[1766898056994,3.49,124.01,123.97,5.55747845]
[1766898057891,3.49,124.01,123.97,3.21757297]
[1766898058193,3.49,124.01,123.97,4.7173346]
[1766898061504,10.7526,124.01,123.97,4.7173346]
[1766898061699,3.49,124.01,123.97,3.21757297]
[1766898061897,3.49,124.01,123.95,1.49976163]
[1766898062402,3.49,124.0,123.94,5.00976163]
[1766898062897,0.05614265,123.98,123.96,0.05115967]
[1766898071106,0.05614265,123.98,123.94,3.51]
[1766898072215,0.05614265,123.98,123.95,0.0522547]
[1766898076726,0.05614265,123.98,123.95,3.3522547]
[1766898105044,7.2638,123.99,123.95,4.85201633]
[1766898105245,7.2638,123.99,123.96,3.25]
[1766898106035,7.32202294,123.99,123.96,3.25]
[1766898106849,0.05822294,123.99,123.96,3.25]
[1766898107149,7.2627,124.01,123.97,3.25]
[1766898107355,7.2627,124.01,123.98,3.25]
[1766898107740,10.6317,124.03,123.98,3.25]
[1766898107944,6.09948909,124.02,123.99,0.05281461]
[1766898110454,0.0602241,124.02,123.99,0.05281461]
[1766898114352,7.3223241,124.02,123.99,0.05281461]
[1766898116253,12.34208573,124.02,123.99,0.05281461]
[1766898116551,5.01976163,124.0,123.93,1.49976163]
[1766898116750,5.01976163,123.99,123.93,1.49976163]
[1766898117458,0.05205223,123.97,123.95,0.05411241]
[1766898120356,0.05205223,123.97,123.92,3.32]
[1766898121457,0.05205223,123.97,123.93,0.05544111]
[1766898122358,0.05205223,123.97,123.93,3.37544111]
[1766898143570,2.34487799,123.96,123.93,0.05544111]
[1766898143777,3.35,123.95,123.89,3.36]
[1766898143975,12.95987799,123.97,123.9,3.36]
[1766898144272,10.615,123.97,123.9,3.36]
[1766898144673,0.05072101,123.95,123.92,3.41998375]
[1766898145060,0.05072101,123.95,123.83,2.34487799]
[1766898145061,3.35,123.91,123.83,2.34487799]
[1766898145266,12.96347799,123.91,123.8,97.68487799]
[1766898145878,12.96347799,123.91,123.82,2.34487799]
[1766898146177,12.96347799,123.91,123.84,0.0563157]
[1766898147076,12.96347799,123.91,123.85,3.31]
[1766898147275,5.69487799,123.9,123.85,3.31]
[1766898147468,3.35,123.9,123.85,3.31]
[1766898147970,3.35,123.9,123.86,0.06117881]
[1766898148172,10.6195,123.9,123.86,0.06117881]
[1766898148469,3.35,123.88,123.83,3.31]
[1766898149268,0.05660997,123.87,123.84,0.0581405]
[1766898150272,0.05660997,123.87,123.84,3.3681405]
[1766898151174,3.35,123.9,123.84,3.3681405]
[1766898151973,2.34487799,123.91,123.84,3.3681405]
[1766898152482,5.69487799,123.85,123.74,113.2152]
[1766898152673,2.34487799,123.83,123.75,95.38]
[1766898152978,3.35,123.84,123.76,2.34487799]
[1766898153174,3.35,123.86,123.76,2.34487799]
[1766898153372,5.69487799,123.86,123.76,2.34487799]
[1766898153570,126.07667799,123.86,123.8,0.05563281]
[1766898153872,126.07667799,123.86,123.81,95.38]
[1766898154274,12.96717799,123.85,123.81,95.32436719]
[1766898154477,3.35,123.84,123.81,95.32436719]
[1766898154679,3.40766729,123.84,123.8,0.05563281]
[1766898154879,3.40766729,123.84,123.8,95.43563281]
[1766898156578,3.35,123.83,123.76,97.74487799]
[1766898157487,0.05108425,123.81,123.78,0.05080403]
[1766898157779,0.05108425,123.81,123.78,95.45080403]
[1766898159279,0.05108425,123.81,123.79,50.74481227]
[1766898159677,0.05108425,123.81,123.79,38.56451227]
[1766898159875,0.05108425,123.81,123.79,26.03691227]
[1766898161577,0.05108425,123.81,123.78,0.05080403]
[1766898168601,7.2728,123.84,123.78,0.05080403]
[1766898169585,0.05806957,123.82,123.78,0.05080403]
[1766898169986,0.05806957,123.82,123.78,2.39568202]
[1766898173990,3.51,123.85,123.78,2.39568202]
[1766898174192,3.51,123.85,123.8,2.34487799]
[1766898175089,0.05090258,123.84,123.81,0.05480568]
[1766898175288,0.05090258,123.84,123.82,95.44]
[1766898178287,3.33,123.87,123.82,95.44]
[1766898179394,0.05504869,123.86,123.82,95.44]
[1766898179793,0.05504869,123.86,123.82,97.78487799]
[1766898180006,0.05504869,123.86,123.82,95.44]
[1766898180495,0.05504869,123.86,123.83,1.50327766]
[1766898181093,0.05504869,123.86,123.84,1.50327766]
[1766898181396,10.5997,123.89,123.84,1.50327766]
[1766898182291,0.05651425,123.88,123.85,0.05534552]
[1766898182484,0.05651425,123.88,123.86,61.9897]